bitfinex/quotes_BTCUSD_20241111
["timestamp","ask_amount","ask_price","bid_price","bid_amount"]
[1731285691482,0.00186283,80541.0,80540.0,0.224161]
[1731285691649,0.00186283,80541.0,80540.0,0.35010321]
[1731285692109,0.31107739,80580.0,80553.0,0.005]
[1731285692326,0.18697639,80580.0,80558.0,0.33718097]
[1731285692541,0.18697639,80580.0,80558.0,0.46312318]
[1731285692737,0.18697639,80580.0,80567.0,0.12412]
[1731285693272,0.18697639,80580.0,80563.0,0.124125]
[1731285693510,0.18697639,80580.0,80558.0,0.12594221]
[1731285693719,0.18697639,80580.0,80532.0,0.07370767]
[1731285693720,0.18613539,80562.0,80552.0,0.124142]
[1731285693886,0.248251,80564.0,80548.0,0.248299]
[1731285694088,0.023,80570.0,80547.0,0.1]
[1731285694313,0.18613539,80562.0,80550.0,0.124145]
[1731285694557,0.124138,80556.0,80551.0,0.124144]
[1731285694778,0.124134,80558.0,80551.0,0.124144]
[1731285694910,0.023,80568.0,80541.0,0.105]
[1731285695130,0.18613539,80562.0,80548.0,0.21304697]
[1731285695464,0.18613539,80562.0,80549.0,0.12594221]
[1731285695869,0.18613539,80562.0,80560.0,0.12413]
[1731285696279,0.248231,80570.0,80561.0,0.124129]
[1731285696480,0.248237,80568.0,80549.0,0.12594221]
[1731285696624,0.023,80565.0,80549.0,0.12594221]
[1731285697059,0.023,80567.0,80552.0,0.248286]
[1731285697265,0.147117,80569.0,80564.0,0.124124]
[1731285697457,0.124116,80570.0,80561.0,0.248256]
[1731285697656,0.18613539,80571.0,80549.0,0.12594221]
[1731285697864,0.18613539,80571.0,80553.0,0.248283]
[1731285698069,0.18613539,80571.0,80549.0,0.12594221]
[1731285698070,0.124124,80565.0,80555.0,0.248275]
[1731285698267,0.248234,80569.0,80559.0,0.124131]
[1731285698474,0.18613539,80571.0,80549.0,0.12594221]
[1731285699010,0.248231,80570.0,80555.0,0.248275]
[1731285699326,0.000842,80562.0,80561.0,0.124129]
[1731285699959,0.000842,80562.0,80557.0,0.248271]
[1731285700212,0.000842,80562.0,80555.0,0.248275]
[1731285700213,0.01067061,80562.0,80549.0,0.12594221]
[1731285700419,0.000842,80562.0,80561.0,0.124129]
[1731285701443,0.000842,80562.0,80561.0,0.35255363]
[1731285701611,0.000842,80562.0,80561.0,0.39567121]
[1731285702046,0.000842,80562.0,80561.0,0.124129]
[1731285704300,0.000842,80562.0,80561.0,0.33965836]
[1731285704503,0.000842,80562.0,80561.0,0.46311818]
[1731285704940,0.000842,80562.0,80561.0,0.25007121]
[1731285705135,0.000842,80562.0,80561.0,0.124129]
[1731285706317,0.013842,80570.0,80569.0,0.124117]
[1731285706520,0.01002657,80562.0,80554.0,0.22414]
[1731285706839,0.18613539,80571.0,80566.0,0.12412]
[1731285707207,0.01004353,80570.0,80566.0,0.12412]
[1731285707415,0.01004353,80570.0,80569.0,0.124117]
[1731285707817,0.124102,80579.0,80572.0,0.124111]
[1731285708227,0.18697639,80580.0,80567.0,0.248238]
[1731285708228,0.010052,80574.0,80567.0,0.248238]
[1731285708457,0.010052,80574.0,80573.0,0.124111]
[1731285708844,0.010052,80574.0,80571.0,0.248225]
[1731285708845,0.010052,80574.0,80571.0,0.124112]
[1731285710190,0.010052,80574.0,80568.0,0.248236]
[1731285710385,0.010052,80574.0,80565.0,0.248246]
[1731285710586,0.010052,80574.0,80570.0,0.124115]
[1731285710789,0.010052,80574.0,80573.0,0.124111]
[1731285711566,0.010052,80574.0,80569.0,0.248231]
[1731285711567,0.010052,80574.0,80570.0,0.124114]
[1731285711909,0.010052,80574.0,80573.0,0.124111]
[1731285712603,0.010052,80574.0,80573.0,0.26597276]
[1731285712821,0.000841,80580.0,80574.0,0.124109]
[1731285713024,0.023,80579.0,80565.0,0.1]
[1731285713226,0.023,80579.0,80551.0,0.258288]
[1731285713227,0.023,80577.0,80556.0,0.248274]
[1731285713437,0.1048,80573.0,80552.0,0.248286]
[1731285713646,0.1048,80573.0,80555.0,0.124138]
[1731285713647,0.023,80569.0,80555.0,0.124138]
[1731285713853,0.023,80568.0,80550.0,0.01404923]
[1731285714049,0.023,80561.0,80551.0,0.248289]
[1731285714261,0.01009698,80568.0,80555.0,0.14186176]
[1731285714459,0.330024,80573.0,80555.0,0.14186176]
[1731285714460,0.01007862,80560.0,80559.0,0.124132]
[1731285714656,0.023,80567.0,80565.0,0.124123]
[1731285714892,0.023,80569.0,80555.0,0.14434425]
[1731285715095,0.01007813,80566.0,80555.0,0.14186176]
[1731285715314,0.023,80569.0,80555.0,0.14186176]
[1731285715527,0.124121,80567.0,80560.0,0.124129]
[1731285715747,0.01007601,80565.0,80562.0,0.124127]
[1731285715957,0.147117,80569.0,80562.0,0.124127]
[1731285715958,0.01007389,80564.0,80562.0,0.124127]
[1731285716186,0.023,80567.0,80562.0,0.124127]
[1731285716412,0.01007813,80566.0,80562.0,0.124127]
[1731285716840,0.01007813,80566.0,80555.0,0.14186176]
[1731285717064,0.023,80565.0,80547.0,0.001684]
[1731285717295,0.124135,80557.0,80551.0,0.124143]
[1731285717501,0.124135,80557.0,80553.0,0.124141]
[1731285717711,0.124135,80557.0,80548.0,0.248299]
[1731285717712,0.124138,80556.0,80551.0,0.124144]
[1731285717919,0.01005693,80556.0,80547.0,0.101684]
[1731285718397,0.18613539,80558.0,80547.0,0.101684]
[1731285718398,0.24828,80554.0,80547.0,0.001684]
[1731285718631,0.21329381,80555.0,80549.0,0.124146]
[1731285718842,0.01005057,80553.0,80547.0,0.001684]
[1731285719067,0.01005269,80554.0,80553.0,0.124141]
[1731285719281,0.147131,80560.0,80554.0,0.124139]
[1731285719535,0.147131,80560.0,80552.0,0.14186176]
[1731285719536,0.023,80560.0,80555.0,0.124137]
[1731285719759,0.147131,80560.0,80553.0,0.248283]
[1731285719975,0.124132,80559.0,80554.0,0.124139]
[1731285720194,0.248265,80559.0,80547.0,0.001684]
[1731285720369,0.12414,80555.0,80550.0,0.124145]
[1731285720541,0.124138,80556.0,80548.0,0.372448]
[1731285720752,0.124135,80557.0,80551.0,0.124143]
[1731285720952,0.023,80561.0,80550.0,0.248292]
[1731285721127,0.023,80561.0,80556.0,0.124136]
[1731285721128,0.18613539,80560.0,80556.0,0.124136]
[1731285721331,0.124122,80566.0,80560.0,0.124129]
[1731285721529,0.124122,80566.0,80553.0,0.14186176]
[1731285721530,0.023,80565.0,80553.0,0.14186176]
[1731285721730,0.023,80564.0,80553.0,0.14186176]
[1731285721913,0.124126,80564.0,80558.0,0.124133]
[1731285722117,0.023,80563.0,80559.0,0.124131]
[1731285722425,0.023,80563.0,80558.0,0.124133]
[1731285722625,0.023,80565.0,80553.0,0.14186176]
[1731285722824,0.248256,80562.0,80547.0,0.001684]
[1731285723057,0.124132,80560.0,80554.0,0.124139]
[1731285723263,0.124132,80560.0,80547.0,0.001684]
[1731285723470,0.124132,80560.0,80554.0,0.124139]
[1731285723582,0.18613539,80561.0,80550.0,0.248292]
[1731285723792,0.124134,80558.0,80549.0,0.248296]
[1731285723998,0.18613539,80561.0,80554.0,0.124139]
[1731285723999,0.124133,80559.0,80554.0,0.124139]
[1731285724200,0.023,80560.0,80548.0,0.248299]
[1731285724402,0.023,80560.0,80559.0,0.124132]
[1731285724598,0.023,80563.0,80557.0,0.248269]
[1731285724845,0.01006541,80560.0,80559.0,0.26599376]
[1731285725019,0.0791,80568.0,80553.0,0.14186176]
[1731285725203,0.01006541,80560.0,80559.0,0.124132]
[1731285725403,0.0791,80568.0,80553.0,0.39014476]
[1731285725646,0.01006541,80560.0,80553.0,0.39014476]
[1731285725850,0.124121,80567.0,80553.0,0.39014476]
[1731285726056,0.124121,80567.0,80560.0,0.248261]
[1731285726259,0.01007813,80566.0,80560.0,0.248261]
[1731285726434,0.01007813,80566.0,80565.0,0.124123]
[1731285726641,0.0791,80568.0,80560.0,0.248261]
[1731285726863,0.01037263,80566.0,80563.0,0.124125]
[1731285727086,0.01031286,80567.0,80563.0,0.124125]
[1731285727425,0.20322,80568.0,80559.0,0.14186176]
[1731285727622,0.01031074,80566.0,80559.0,0.14186176]
[1731285727735,0.01031286,80567.0,80559.0,0.14186176]
[1731285727949,0.01030862,80565.0,80561.0,0.248259]
[1731285728142,0.0791,80568.0,80559.0,0.14186176]
[1731285728353,0.0103065,80564.0,80563.0,0.124126]
[1731285729324,0.000841,80570.0,80559.0,0.14186176]
[1731285729653,0.000841,80570.0,80564.0,0.248248]
[1731285729851,0.000841,80570.0,80566.0,0.124121]
[1731285730259,0.124117,80569.0,80562.0,0.124126]
[1731285730560,0.249072,80570.0,80559.0,0.14186176]
[1731285730561,0.000841,80570.0,80559.0,0.14186176]
[1731285730779,0.000841,80570.0,80568.0,0.124118]
[1731285730996,0.124957,80570.0,80559.0,0.14186176]
[1731285731181,0.000841,80570.0,80566.0,0.12412]
[1731285731384,0.000841,80570.0,80567.0,0.12412]
[1731285731782,0.000841,80570.0,80566.0,0.124121]
[1731285732118,0.000841,80570.0,80567.0,0.12412]
[1731285732689,0.000841,80570.0,80551.0,0.14186176]
[1731285733034,0.248237,80568.0,80557.0,0.124134]
[1731285733192,0.124127,80563.0,80557.0,0.124135]
[1731285733376,0.124126,80563.0,80557.0,0.124134]
[1731285733580,0.124126,80563.0,80558.0,0.124132]
[1731285733816,0.000841,80570.0,80555.0,0.248277]
[1731285734011,0.000841,80570.0,80557.0,0.14186176]
[1731285734012,0.18613539,80569.0,80557.0,0.14186176]
[1731285734216,0.023,80566.0,80558.0,0.248268]
[1731285734417,0.147122,80566.0,80561.0,0.124129]
[1731285734615,0.023,80568.0,80552.0,0.248286]
[1731285734838,0.248262,80560.0,80552.0,0.248286]
[1731285735063,0.023,80566.0,80551.0,0.25077177]
[1731285735390,0.023,80566.0,80550.0,0.14186176]
[1731285735391,0.124127,80563.0,80558.0,0.124132]
[1731285736121,0.023,80567.0,80550.0,0.15569399]
[1731285736349,0.18613539,80562.0,80550.0,0.15569399]
[1731285736678,0.023,80559.0,80555.0,0.125819]
[1731285736982,0.023,80560.0,80556.0,0.124136]
[1731285737185,0.023,80564.0,80555.0,0.001682]
[1731285737399,0.18613539,80562.0,80555.0,0.001682]
[1731285737627,0.023,80564.0,80555.0,0.001682]
[1731285737628,0.124137,80556.0,80555.0,0.001682]
[1731285737824,0.023,80564.0,80555.0,0.001682]
[1731285738043,0.023,80568.0,80555.0,0.001682]
[1731285738274,0.124133,80559.0,80555.0,0.001682]
[1731285738694,0.248268,80558.0,80555.0,0.001682]
[1731285738935,0.31027239,80556.0,80555.0,0.001682]
[1731285739142,0.35387921,80556.0,80555.0,0.001682]
[1731285739550,0.44409003,80556.0,80555.0,0.001682]
[1731285739753,0.40950085,80556.0,80555.0,0.001682]
[1731285739937,0.57017895,80556.0,80555.0,0.001682]
[1731285740132,0.69178663,80556.0,80555.0,0.001682]
[1731285740311,0.48048689,80556.0,80555.0,0.001682]
[1731285740736,0.61756957,80556.0,80555.0,0.001682]
[1731285741069,0.61756957,80556.0,80547.0,0.001684]
[1731285741070,0.262149,80548.0,80547.0,0.001684]
[1731285741287,0.89869564,80548.0,80547.0,0.001684]
[1731285741523,0.80584408,80548.0,80547.0,0.001684]
[1731285741701,0.80384408,80548.0,80547.0,0.001684]
[1731285741898,0.81794337,80548.0,80547.0,0.001684]
[1731285742309,0.68085994,80548.0,80547.0,0.001684]
[1731285742730,0.68085994,80548.0,80532.0,0.001684]
[1731285742731,0.228372,80533.0,80532.0,0.001684]
[1731285742931,0.35431421,80533.0,80532.0,0.001684]
[1731285744540,0.34931421,80533.0,80532.0,0.001684]
[1731285747500,0.147172,80533.0,80532.0,0.001684]
[1731285747706,0.248327,80539.0,80532.0,0.001684]
[1731285747907,0.43445439,80542.0,80532.0,0.001684]
[1731285748111,0.18613539,80542.0,80532.0,0.14354576]
[1731285748410,0.124172,80533.0,80532.0,0.001684]
[1731285749188,0.25011421,80533.0,80532.0,0.001684]
[1731285749395,0.35551421,80533.0,80532.0,0.001684]
[1731285750165,0.36051421,80533.0,80532.0,0.001684]
[1731285750361,0.43626788,80533.0,80532.0,0.001684]
[1731285750722,0.36051421,80533.0,80532.0,0.001684]
[1731285751111,0.37490873,80533.0,80532.0,0.001684]
[1731285751724,0.37690873,80533.0,80532.0,0.001684]
[1731285753151,0.48690873,80533.0,80532.0,0.001684]
[1731285754255,0.51168556,80533.0,80532.0,0.001684]
[1731285754580,0.63562777,80533.0,80532.0,0.001684]
[1731285754903,0.51168556,80533.0,80532.0,0.001684]
[1731285755111,0.233888,80523.0,80497.0,0.001404]
[1731285755330,0.50169197,80523.0,80497.0,0.125631]
[1731285755532,0.50169197,80523.0,80497.0,0.001404]
[1731285757420,0.50169197,80523.0,80506.0,0.001404]
[1731285757642,0.54809197,80523.0,80506.0,0.001404]
[1731285758935,0.56219576,80523.0,80506.0,0.001404]
[1731285759138,0.51579576,80523.0,80506.0,0.001404]
[1731285759390,0.373934,80523.0,80506.0,0.001404]
[1731285760168,0.51579576,80523.0,80506.0,0.001404]
[1731285761669,0.373934,80523.0,80506.0,0.001404]
[1731285762024,0.51579576,80523.0,80506.0,0.001404]
[1731285762904,0.51079576,80523.0,80506.0,0.001404]
[1731285763131,0.51579576,80523.0,80506.0,0.001404]
[1731285764687,0.51779576,80523.0,80506.0,0.001404]
[1731285764891,0.51579576,80523.0,80506.0,0.001404]
[1731285765443,0.51779576,80523.0,80506.0,0.001404]
[1731285765639,0.64373797,80523.0,80506.0,0.001404]
[1731285765821,0.64173797,80523.0,80506.0,0.001404]
[1731285766019,0.51079576,80523.0,80506.0,0.001404]
[1731285766379,0.51579576,80523.0,80506.0,0.001404]
[1731285767026,0.62779576,80523.0,80506.0,0.001404]
[1731285767235,0.62579576,80523.0,80506.0,0.001404]
[1731285767960,0.62779576,80523.0,80506.0,0.001404]
[1731285768590,0.62579576,80523.0,80506.0,0.001404]
[1731285769229,0.62779576,80523.0,80506.0,0.001404]
[1731285769429,0.62579576,80523.0,80506.0,0.001404]
[1731285769787,0.61779576,80523.0,80506.0,0.001404]
[1731285769920,0.62779576,80523.0,80506.0,0.001404]
[1731285770325,0.62579576,80523.0,80506.0,0.001404]
[1731285770525,0.76765752,80523.0,80506.0,0.001404]
[1731285770724,0.62779576,80523.0,80506.0,0.001404]
[1731285771352,0.63673794,80523.0,80506.0,0.001404]
[1731285772443,0.63473794,80523.0,80506.0,0.001404]
[1731285772869,0.76268015,80523.0,80506.0,0.001404]
[1731285773895,0.63673794,80523.0,80506.0,0.001404]
[1731285775206,0.7785997,80523.0,80506.0,0.001404]
[1731285775581,0.63673794,80523.0,80506.0,0.001404]
[1731285777883,0.63473794,80523.0,80506.0,0.001404]
[1731285778568,0.63673794,80523.0,80506.0,0.001404]
[1731285778777,0.76268015,80523.0,80506.0,0.001404]
[1731285779008,0.63673794,80523.0,80506.0,0.001404]
[1731285779825,0.141194,80519.0,80506.0,0.001404]
[1731285780031,0.36713621,80519.0,80506.0,0.001404]
[1731285780249,0.37630337,80519.0,80506.0,0.001404]
[1731285780656,0.37430337,80519.0,80506.0,0.001404]
[1731285783361,0.50024558,80519.0,80506.0,0.001404]
[1731285784117,0.37430337,80519.0,80506.0,0.001404]
[1731285784334,0.37630337,80519.0,80506.0,0.001404]
[1731285784719,0.37430337,80519.0,80506.0,0.001404]
[1731285785333,0.37630337,80519.0,80506.0,0.001404]
[1731285785542,0.37430337,80519.0,80506.0,0.001404]
[1731285785744,0.36430337,80519.0,80506.0,0.001404]
[1731285785914,0.24010937,80519.0,80506.0,0.001404]
[1731285786116,0.36430337,80519.0,80506.0,0.001404]
[1731285786545,0.49024558,80519.0,80506.0,0.001404]
[1731285786968,0.36430337,80519.0,80506.0,0.001404]
[1731285788133,0.36630337,80519.0,80506.0,0.001404]
[1731285788915,0.39084085,80519.0,80506.0,0.001404]
[1731285789497,0.48492502,80519.0,80506.0,0.001404]
[1731285789925,0.42956537,80519.0,80506.0,0.001404]
[1731285791263,0.61115346,80519.0,80506.0,0.001404]
[1731285791443,0.42956537,80519.0,80506.0,0.001404]
[1731285791670,0.25930337,80519.0,80506.0,0.001404]
[1731285791863,0.26430337,80519.0,80509.0,0.0468]
[1731285792074,0.40616513,80519.0,80509.0,0.0468]
[1731285792289,0.40616513,80519.0,80506.0,0.001404]
[1731285792735,0.131212,80507.0,80506.0,0.001404]
[1731285792969,0.39901597,80507.0,80506.0,0.001404]
[1731285793216,0.50860527,80507.0,80506.0,0.001404]
[1731285793927,0.005,80498.0,80497.0,0.001404]
[1731285794139,0.64089173,80498.0,80497.0,0.001404]
[1731285794377,0.78751193,80498.0,80497.0,0.001404]
[1731285794548,0.82315048,80498.0,80497.0,0.001404]
[1731285794727,0.78751193,80498.0,80497.0,0.001404]
[1731285795137,0.49678841,80498.0,80497.0,0.001404]
[1731285795353,0.35969699,80498.0,80497.0,0.001404]
[1731285795551,0.13547099,80498.0,80497.0,0.001404]
[1731285795759,0.00952878,80498.0,80497.0,0.001404]
[1731285795963,0.01390191,80507.0,80498.0,0.005]
[1731285796168,0.248395,80517.0,80498.0,0.005]
[1731285796169,0.31033639,80515.0,80505.0,0.0456]
[1731285796369,0.18613539,80515.0,80512.0,0.005]
[1731285796566,0.18613539,80515.0,80513.0,0.0456]
[1731285796779,0.0079397,80514.0,80513.0,0.0456]
[1731285797556,0.01467645,80523.0,80514.0,0.124201]
[1731285797907,0.13389888,80522.0,80513.0,0.0456]
[1731285798067,0.00795667,80522.0,80520.0,0.124191]
[1731285798294,0.00795667,80522.0,80521.0,0.129191]
[1731285798509,0.03797608,80532.0,80518.0,0.005]
[1731285798510,0.000841,80532.0,80531.0,0.124175]
[1731285798716,0.000841,80532.0,80531.0,0.0763]
[1731285799247,0.00881889,80532.0,80531.0,0.0763]
[1731285799849,0.000841,80532.0,80531.0,0.0763]
[1731285800579,0.00881889,80532.0,80531.0,0.0763]
[1731285801134,0.000841,80532.0,80531.0,0.0763]
[1731285801336,0.000841,80532.0,80531.0,0.0863]
[1731285801529,0.1,80540.0,80539.0,0.0566]
[1731285801829,0.1,80540.0,80539.0,0.1382]
[1731285802416,0.10817771,80540.0,80539.0,0.1382]
[1731285804854,0.10817771,80540.0,80539.0,0.262363]
[1731285805062,0.1,80540.0,80539.0,0.262363]
[1731285805254,0.1,80540.0,80539.0,0.1382]
[1731285805452,0.10835691,80540.0,80539.0,0.262363]
[1731285807228,0.10919891,80540.0,80539.0,0.262363]
[1731285808543,0.07686893,80540.0,80539.0,0.47547991]
[1731285808765,0.00919891,80540.0,80539.0,0.37547991]
[1731285808971,0.00919891,80540.0,80539.0,0.50642212]
[1731285808972,0.000842,80540.0,80539.0,0.50642212]
[1731285809188,0.000842,80540.0,80539.0,0.61642212]
[1731285809414,0.000841,80547.0,80539.0,0.61642212]
[1731285809415,0.000841,80547.0,80546.0,0.129152]
[1731285809707,0.18613539,80553.0,80552.0,0.129143]
[1731285810134,0.18613539,80562.0,80561.0,0.005]
[1731285810309,0.18613539,80562.0,80561.0,0.129129]
[1731285810516,0.1932259,80562.0,80561.0,0.129129]
[1731285810731,0.18613539,80571.0,80569.0,0.005]
[1731285811303,0.000841,80575.0,80569.0,0.005]
[1731285811723,0.124113,80572.0,80569.0,0.005]
[1731285812132,0.124113,80572.0,80565.0,0.005]
[1731285812331,0.248219,80574.0,80565.0,0.005]
[1731285812548,0.00711737,80569.0,80565.0,0.005]
[1731285813126,0.13123437,80569.0,80565.0,0.005]
[1731285813328,0.00711737,80569.0,80565.0,0.005]
[1731285813709,0.13123437,80569.0,80565.0,0.005]
[1731285814072,0.00711737,80569.0,80565.0,0.005]
[1731285814277,0.00711737,80569.0,80567.0,0.124119]
[1731285814502,0.00711737,80569.0,80568.0,0.129118]
[1731285814686,0.000841,80570.0,80569.0,0.005]
[1731285815670,0.124956,80570.0,80569.0,0.005]
[1731285815876,0.124956,80570.0,80548.0,0.21311691]
[1731285815877,0.124118,80568.0,80567.0,0.005]
[1731285816101,0.000841,80570.0,80567.0,0.005]
[1731285816102,0.00797171,80570.0,80567.0,0.005]
[1731285816307,0.124123,80565.0,80564.0,0.005]
[1731285816621,0.13306233,80565.0,80550.0,0.005]
[1731285816777,0.13306233,80565.0,80548.0,0.005]
[1731285816778,0.16797454,80564.0,80548.0,0.005]
[1731285816983,0.124148,80549.0,80548.0,0.005]
[1731285817388,0.1312298,80549.0,80548.0,0.005]
[1731285817609,0.0070818,80549.0,80548.0,0.005]
[1731285817819,0.18613539,80561.0,80548.0,0.005]
[1731285818021,0.002,80578.0,80537.0,0.0474]
[1731285818022,0.18613539,80571.0,80556.0,0.21311691]
[1731285818223,0.18613539,80571.0,80561.0,0.124128]
[1731285818224,0.18613539,80562.0,80561.0,0.124128]
[1731285818430,0.124957,80570.0,80557.0,0.248271]
[1731285818431,0.000841,80570.0,80569.0,0.005]
[1731285819006,0.000841,80570.0,80556.0,0.21311691]
[1731285819007,0.000841,80570.0,80564.0,0.005]
[1731285819202,0.000841,80570.0,80568.0,0.005]
[1731285819203,0.000841,80569.0,80568.0,0.005]
[1731285820178,0.124958,80569.0,80568.0,0.005]
[1731285820324,0.000841,80569.0,80568.0,0.005]
[1731285820523,0.000841,80569.0,80559.0,0.248262]
[1731285820524,0.124119,80568.0,80565.0,0.005]
[1731285820723,0.000841,80569.0,80565.0,0.005]
[1731285821323,0.000841,80569.0,80568.0,0.005]
[1731285821727,0.000841,80569.0,80568.0,0.129118]
[1731285823243,0.000841,80569.0,80568.0,0.13160018]
[1731285823440,0.000841,80569.0,80568.0,0.129118]
[1731285823659,0.000841,80569.0,80568.0,0.211718]
[1731285823861,0.000841,80569.0,80568.0,0.259118]
[1731285826152,0.000841,80569.0,80568.0,0.176518]
[1731285826847,0.000841,80569.0,80568.0,0.0524]
[1731285827036,0.000841,80569.0,80568.0,0.176518]
[1731285828253,0.000841,80569.0,80568.0,0.18573204]
[1731285829235,0.18613539,80590.0,80579.0,0.0558]
[1731285829437,0.18613539,80590.0,80584.0,0.215394]
[1731285829662,0.18613539,80590.0,80587.0,0.129089]
[1731285829980,0.18613539,80590.0,80587.0,0.13830098]
[1731285830425,0.18613539,80600.0,80587.0,0.13830098]
[1731285831067,0.18613539,80600.0,80587.0,0.129089]
[1731285831267,0.18613539,80600.0,80587.0,0.13829362]
[1731285831560,0.18613539,80600.0,80587.0,0.14077498]
[1731285831993,0.18613539,80600.0,80587.0,0.27171719]
[1731285832421,0.18613539,80600.0,80587.0,0.26923583]
[1731285832706,0.18613539,80600.0,80587.0,0.28320734]
[1731285832903,0.18613539,80600.0,80587.0,0.28568867]
[1731285833325,0.18613539,80600.0,80587.0,0.28320734]
[1731285834390,0.18613539,80600.0,80587.0,0.27400272]
[1731285834591,0.18613539,80600.0,80587.0,0.1522569]
[1731285839373,0.18613539,80600.0,80587.0,0.13828539]
[1731285839632,0.083,80599.0,80587.0,0.13828539]
[1731285840034,0.083,80599.0,80587.0,0.129089]
[1731285840234,0.083,80599.0,80587.0,0.13828866]
[1731285841037,0.18613539,80600.0,80587.0,0.13828866]
[1731285842596,0.18613539,80600.0,80587.0,0.14077011]
[1731285842805,0.18613539,80600.0,80587.0,0.13828866]
[1731285844109,0.18613539,80600.0,80587.0,0.13828561]
[1731285844313,0.18613539,80600.0,80587.0,0.14076703]
[1731285844989,0.18613539,80600.0,80587.0,0.2824989]
[1731285845417,0.18613539,80600.0,80587.0,0.28001748]
[1731285847813,0.18613539,80600.0,80587.0,0.27082087]
[1731285848667,0.248145,80598.0,80587.0,0.14673187]
[1731285848875,0.248145,80598.0,80572.0,0.0456]
[1731285848876,0.124095,80583.0,80582.0,0.005]
[1731285849100,0.00812061,80583.0,80582.0,0.005]
[1731285849493,0.000842,80588.0,80582.0,0.253192]
[1731285849635,0.000842,80588.0,80577.0,0.248208]
[1731285849636,0.0081085,80587.0,80586.0,0.129091]
[1731285849840,0.000842,80588.0,80587.0,0.129089]
[1731285850895,0.000842,80588.0,80587.0,0.14078404]
[1731285851343,0.000842,80588.0,80587.0,0.13157053]
[1731285851539,0.000703,80603.0,80589.0,0.01]
[1731285851747,0.000703,80603.0,80602.0,0.129066]
[1731285851965,0.000703,80603.0,80602.0,0.13828089]
[1731285852592,0.000703,80603.0,80602.0,0.129066]
[1731285852967,0.000703,80603.0,80602.0,0.005]
[1731285853371,0.000703,80603.0,80602.0,0.129066]
[1731285853742,0.000703,80603.0,80602.0,0.005]
[1731285854183,0.000703,80603.0,80602.0,0.129066]
[1731285854316,0.0088602,80603.0,80602.0,0.129066]
[1731285854516,0.000703,80603.0,80602.0,0.129066]
[1731285854718,0.0088602,80603.0,80602.0,0.129066]
[1731285855104,0.000703,80603.0,80602.0,0.129066]
[1731285855873,0.000703,80603.0,80602.0,0.13154711]
[1731285856791,0.000703,80603.0,80602.0,0.13828845]
[1731285857508,0.000703,80603.0,80602.0,0.129066]
[1731285858163,0.00888834,80603.0,80602.0,0.1315472]
[1731285858307,0.000703,80603.0,80602.0,0.129066]
[1731285858739,0.000703,80603.0,80602.0,0.13154693]
[1731285858910,0.000703,80603.0,80602.0,0.14077427]
[1731285859540,0.000703,80603.0,80602.0,0.13829334]
[1731285861843,0.000703,80603.0,80602.0,0.129066]
[1731285864368,0.000703,80603.0,80602.0,0.26248927]
[1731285864561,0.000703,80603.0,80602.0,0.39468927]
[1731285864821,0.000703,80603.0,80602.0,0.39220821]
[1731285864933,0.000703,80603.0,80602.0,0.49220821]
[1731285865131,0.000703,80603.0,80602.0,0.71482897]
[1731285865338,0.000703,80613.0,80603.0,0.246064]
[1731285865671,0.000703,80613.0,80603.0,0.37000621]
[1731285866276,0.18613539,80618.0,80617.0,0.124043]
[1731285866477,0.18613539,80618.0,80617.0,0.47508661]
[1731285866647,0.19307386,80618.0,80617.0,0.47260597]
[1731285866844,0.000841,80624.0,80623.0,0.129034]
[1731285867074,0.000841,80624.0,80623.0,0.25497621]
[1731285867271,0.00781318,80624.0,80623.0,0.25497621]
[1731285867523,0.00781318,80624.0,80623.0,0.25997621]
[1731285867928,0.000841,80624.0,80623.0,0.25997621]
[1731285868293,0.000841,80624.0,80623.0,0.25497621]
[1731285868495,0.000841,80624.0,80623.0,0.129034]
[1731285869543,0.000841,80624.0,80623.0,0.25997621]
[1731285869753,0.000841,80624.0,80623.0,0.14303937]
[1731285870720,0.000841,80624.0,80623.0,0.27398158]
[1731285872158,0.000703,80634.0,80627.0,0.180927]
[1731285872378,0.000703,80634.0,80627.0,0.70726993]
[1731285872575,0.000703,80634.0,80627.0,0.70478997]
[1731285872776,0.000703,80634.0,80627.0,0.70278997]
[1731285873392,0.000703,80634.0,80627.0,0.56758997]
[1731285873588,0.000703,80634.0,80627.0,0.57258997]
[1731285874000,0.000703,80634.0,80627.0,0.56758997]
[1731285874210,0.000703,80634.0,80627.0,0.57258997]
[1731285874829,0.000703,80634.0,80627.0,0.50155715]
[1731285876317,0.000703,80634.0,80627.0,0.50355715]
[1731285876531,0.000703,80634.0,80627.0,0.50155715]
[1731285879859,0.000703,80634.0,80627.0,0.49655715]
[1731285880071,0.000703,80634.0,80627.0,0.50155715]
[1731285880949,0.000703,80634.0,80627.0,0.49655715]
[1731285881155,0.000703,80634.0,80627.0,0.37061494]
[1731285881377,0.000703,80634.0,80627.0,0.129027]
[1731285882874,0.000703,80634.0,80627.0,0.13150723]
[1731285883431,0.000703,80634.0,80627.0,0.129027]
[1731285889732,0.0489,80633.0,80627.0,0.129027]
[1731285891313,0.076403,80628.0,80627.0,0.005]
[1731285891602,0.08236718,80628.0,80627.0,0.129027]
[1731285891777,0.08236718,80628.0,80627.0,0.005]
[1731285891929,0.08236718,80628.0,80627.0,0.129027]
[1731285892128,0.1294,80627.0,80623.0,0.00168]
[1731285892333,0.206832,80624.0,80623.0,0.00168]
[1731285892558,0.21278772,80624.0,80623.0,0.00168]
[1731285892725,0.08875572,80624.0,80623.0,0.00168]
[1731285893349,0.21278772,80624.0,80623.0,0.00168]
[1731285893770,0.08875572,80624.0,80623.0,0.00168]
[1731285894172,0.08875572,80624.0,80623.0,0.125714]
[1731285894459,0.0828,80624.0,80623.0,0.125714]
[1731285895183,0.0828,80624.0,80623.0,0.00168]
[1731285895563,0.08871295,80624.0,80623.0,0.00168]
[1731285895768,0.00591295,80624.0,80623.0,0.125714]
[1731285896364,0.000703,80628.0,80627.0,0.124027]
[1731285896752,0.00662442,80628.0,80627.0,0.124027]